fUST/lending_fUST_20260408
["ID","MTS","AMOUNT","RATE_DAILY","PERIOD"]
[420073474,1775649681582,-790.49724514,0.00013699,2]
[420073475,1775649729711,-25.50275486,0.00017558,2]
[420073476,1775649729724,-158.49724514,0.00017558,2]
[420073477,1775649729734,-25.50275486,0.00017558,2]
[420073478,1775649795252,345.75021268,0.00031169,120]
[420073479,1775650019110,3919.27318712,0.00031,120]
[420073482,1775650179178,3300.0,0.00031,120]
[420073614,1775650698959,160.0,0.000315,120]
[420073630,1775651432070,-209.55025923,0.00013499,2]
[420073631,1775651432079,-398.69666099,0.00013499,2]
[420073646,1775651438364,-2180.58596287,0.00013086,2]
[420073648,1775651438375,-213.30333901,0.00013499,2]
[420073650,1775651438385,-484.02130306,0.00013699,2]
[420073935,1775651446180,-515.97869694,0.00013699,2]
[420073937,1775651446189,-319.70574972,0.00016066,2]
[420073938,1775651446199,-1277.5441759,0.00016066,2]
[420073939,1775651446208,-718.898976,0.00016942,2]
[420073940,1775651446218,-162.98983151,0.000175,2]
[420073941,1775651446227,-381.77104058,0.00017558,2]
[420073942,1775651446236,-2428.812168,0.00017599,2]
[420073944,1775651507580,-1769.85824514,0.00015661,2]
[420074058,1775652638955,-3954.31513438,0.00012142,2]
[420074059,1775652638966,-1920.79489107,0.00012265,2]
[420074060,1775652638980,-3079.20510893,0.00012265,2]
[420074061,1775652638990,-300.0,0.00012513,2]
[420074062,1775652639001,-78.01313597,0.00013699,2]
[420074063,1775652639014,-921.98686403,0.00013699,2]
[420074064,1775652639025,-635.51313597,0.000156,2]
[420074345,1775652646469,-11288.76805861,0.000156,2]
[420074347,1775652646479,-182.1959003,0.00015979,2]
[420074349,1775652646490,-2000.0,0.000173,2]
[420074351,1775652646500,-2000.0,0.000174,2]
[420074353,1775652646510,-2882.16120954,0.000175,2]
[420074358,1775652977732,395.57966906,0.00031454,120]
[420074359,1775653013873,5000.0,0.00031,120]
[420074360,1775653056120,5000.0,0.00031,120]
[420074361,1775653068244,5000.0,0.00031,120]
[420074362,1775653083231,5000.0,0.00031,120]
[420074363,1775653096101,5000.0,0.00031,120]
[420074364,1775653112506,5000.0,0.00031,120]
[420074365,1775653143456,5036.0,0.00031,120]
[420074366,1775653278302,237.34780143,0.00031386,120]
[420074369,1775653797228,198.16663372,0.0001,2]
[420074397,1775653832928,-1000.0,0.00013699,2]
[420074399,1775653832939,-615.0,0.00013699,2]
[420074400,1775653832949,-751.07571424,0.00013781,2]
[420074401,1775653832959,-1441.39330743,0.00014674,2]
[420074402,1775653832969,-300.0,0.00015118,2]
[420074403,1775653832979,-1117.0,0.00015118,2]
[420074404,1775653832989,-1469.1763737,0.00015119,2]
[420074405,1775653832999,-186.4589059,0.00015119,2]
[420074407,1775653833011,-152.1130437,0.00015119,2]
[420074408,1775653833020,-863.0627001,0.00015119,2]
[420074410,1775653833030,-2131.71090062,0.00015566,2]
[420074412,1775653833040,-1525.55707817,0.00015828,2]
[420074414,1775653833050,-5000.0,0.00016438,2]
[420074416,1775653833060,-3522.128707,0.00016438,2]
[420074417,1775653833070,-420.0,0.00016544,2]
[420074419,1775653833080,-179.9494408,0.00016607,2]
[420074421,1775653833090,-508.04541124,0.00016661,2]
[420074423,1775653833101,-321.98191196,0.000169,2]
[420074424,1775653833111,-863.0627001,0.0001693,2]
[420074425,1775653833121,-1469.1763737,0.00017065,2]
[420074426,1775653833131,-181.3220541,0.00017301,2]
[420074427,1775653833141,-151.0,0.00017301,2]
[420074428,1775653833150,-151.0,0.00017301,2]
[420074429,1775653833161,-151.0,0.00017301,2]
[420074430,1775653833171,-151.0,0.00017301,2]
[420074431,1775653833181,-151.0,0.00017301,2]
[420074432,1775653833191,-151.0,0.00017301,2]
[420074433,1775653833201,-151.0,0.00017301,2]
[420074434,1775653833211,-151.0,0.00017301,2]
[420074435,1775653833221,-151.0,0.00017301,2]
[420074436,1775653833231,-151.0,0.00017301,2]
[420074437,1775653833241,-151.0,0.00017301,2]
[420074438,1775653833251,-151.0,0.00017301,2]
[420074439,1775653833261,-151.0,0.00017301,2]
[420074440,1775653833270,-151.0,0.00017301,2]
[420074441,1775653833280,-151.0,0.00017301,2]
[420074442,1775653833290,-151.0,0.00017301,2]
[420074443,1775653833300,-151.0,0.00017301,2]
[420074444,1775653833310,-151.0,0.00017301,2]
[420074445,1775653833321,-151.0,0.00017301,2]
[420074446,1775653833332,-185.23066073,0.00017301,2]
[420074447,1775653833341,-151.56415893,0.00017301,2]
[420074448,1775653833352,-1000.0,0.00017311,2]
[420074449,1775653833361,-151.0,0.00017311,2]
[420074450,1775653833370,-188.85046586,0.00017325,2]
[420074451,1775653833380,-163.83909932,0.00017325,2]
[420074452,1775653833389,-183.90371337,0.00017425,2]
[420074453,1775653833400,-734.87923863,0.00017425,2]
[420074454,1775653833409,-719.84972374,0.00017425,2]
[420074455,1775653833418,-117.83879046,0.000175,2]
[420074456,1775653833428,-500.0,0.00017597,2]
[420074457,1775653833437,-515.2999604,0.00017598,2]
[420074458,1775653833447,-4020.0,0.00017599,2]
[420074459,1775653833456,-500.0,0.00017599,2]
[420074460,1775653833466,-2206.0,0.00017599,2]
[420074461,1775653833475,-1406.0,0.00017599,2]
[420074462,1775653833485,-184.0,0.00017599,2]
[420074463,1775653833496,-440.0,0.00017599,2]
[420074464,1775653833507,-221.814332,0.0001763,2]
[420074465,1775653833517,-316.0,0.00017905,2]
[420074466,1775653833527,-457.0,0.00017919,2]
[420074467,1775653833536,-185.0,0.00017919,2]
[420074468,1775653833546,-376.0,0.00017919,2]
[420074469,1775653833556,-290.0,0.00018235,5]
[420074470,1775653833566,-2930.04750782,0.00018245,2]
[420074471,1775653833576,-548.63,0.00018245,2]
[420074472,1775653833586,-221.814332,0.00018373,2]
[420074473,1775653833596,-269.01,0.00018373,2]
[420074474,1775653833606,-190.62449416,0.00018533,2]
[420074475,1775653833615,-500.0,0.00018559,2]
[420074476,1775653833624,-210.3932593,0.00018559,2]
[420074477,1775653833634,-461.74040029,0.00018559,2]
[420074478,1775653833643,-500.0,0.00018559,2]
[420074479,1775653833653,-500.0,0.00018559,2]
[420074480,1775653833662,-500.0,0.00018559,2]
[420074481,1775653833671,-500.0,0.00018559,2]
[420074482,1775653833681,-500.0,0.00018559,2]
[420074483,1775653833690,-500.0,0.00018559,2]
[420074484,1775653833699,-500.0,0.00018559,2]
[420074485,1775653833709,-500.0,0.00018559,2]
[420074486,1775653833719,-500.0,0.00018559,2]
[420074487,1775653833729,-500.0,0.00018559,2]
[420074488,1775653833740,-500.0,0.00018559,2]
[420074489,1775653833749,-500.0,0.00018559,2]
[420074490,1775653833761,-500.0,0.00018559,2]
[420074491,1775653833771,-500.0,0.00018559,2]
[420074492,1775653833780,-500.0,0.00018559,2]
[420074493,1775653833790,-500.0,0.00018559,2]
[420074494,1775653833799,-500.0,0.00018559,2]
[420074495,1775653833808,-500.0,0.00018559,2]
[420074496,1775653833818,-248.75694305,0.00018559,2]
[420074497,1775653833827,-500.0,0.00018559,2]
[420074498,1775653833837,-418.07948446,0.00018559,2]
[420074499,1775653833847,-500.0,0.00018559,2]
[420074500,1775653833856,-201.42113139,0.00018559,2]
[420074501,1775653833866,-500.0,0.00018559,2]
[420074502,1775653833875,-500.0,0.00018559,2]
[420074503,1775653833884,-500.0,0.00018559,2]
[420074504,1775653833894,-500.0,0.00018559,2]
[420074505,1775653833903,-500.0,0.00018559,2]
[420074506,1775653833913,-500.0,0.00018559,2]
[420074507,1775653833922,-500.0,0.00018559,2]
[420074508,1775653833932,-500.0,0.00018559,2]
[420074509,1775653833942,-408.3181155,0.00018559,2]
[420074510,1775653833952,-500.0,0.00018559,2]
[420074511,1775653833962,-500.0,0.00018559,2]
[420074512,1775653833971,-500.0,0.00018559,2]
[420074513,1775653833981,-500.0,0.00018559,2]
[420074514,1775653833992,-500.0,0.00018559,2]
[420074515,1775653834003,-500.0,0.00018559,2]
[420074516,1775653834014,-500.0,0.00018559,2]
[420074517,1775653834024,-500.0,0.00018559,2]
[420074518,1775653834035,-500.0,0.00018559,2]
[420074519,1775653834045,-500.0,0.00018559,2]
[420074520,1775653834056,-405.8182397,0.00018559,2]
[420074521,1775653834066,-500.0,0.00018559,2]
[420074522,1775653834077,-288768.13831937,0.0001856,2]
[420074524,1775653838809,-500.0,0.00018559,2]
[420074525,1775653838819,-459.82483576,0.00018559,2]
[420074526,1775653839151,-40.17516424,0.00018559,2]
[420074527,1775653839161,-479785.29704081,0.0001856,2]
[420074528,1775653839171,-500.0,0.00018573,2]
[420074529,1775653839181,-502.216138,0.00018573,2]
[420074530,1775653839191,-500.0,0.00018573,2]
[420074531,1775653839201,-500.0,0.00018573,2]
[420074532,1775653839211,-500.0,0.00018573,2]
[420074533,1775653839221,-500.0,0.00018573,2]
[420074534,1775653839231,-197.85,0.0001866,2]
[420074535,1775653839240,-22195.89688613,0.00018661,2]
[420074536,1775653839250,-531.09455592,0.00018673,2]
[420074537,1775653839262,-500.0,0.00018697,2]
[420074538,1775653839272,-500.0,0.00018738,2]
[420074539,1775653839282,-500.0,0.00018738,2]
[420074540,1775653839292,-256.80424062,0.00018738,2]
[420074541,1775653839303,-863.0627001,0.00018741,2]
[420074542,1775653839313,-500.0,0.00018829,2]
[420074543,1775653839323,-5000.0,0.0001883,2]
[420074544,1775653839333,-198.93,0.00018855,7]
[420074545,1775653839344,-2876.51949608,0.00018858,2]
[420074546,1775653839354,-501.92012104,0.00018861,2]
[420074547,1775653839365,-200.02242682,0.00018861,2]
[420074548,1775653839375,-504.2743948,0.00018861,2]
[420074549,1775653839386,-599.60298507,0.00018861,2]
[420074550,1775653839397,-1966.89418045,0.00018861,2]
[420074551,1775653839409,-537.6845,0.00018861,2]
[420074552,1775653839420,-2150.738,0.00018861,2]
[420074553,1775653839432,-12550.392533,0.00018862,2]
[420074554,1775653839442,-193.0,0.00018862,2]
[420074555,1775653839452,-578.20924308,0.00018916,2]
[420074556,1775653839463,-457.0,0.00018919,2]
[420074557,1775653839473,-185.0,0.00018919,2]
[420074558,1775653839483,-376.0,0.00018919,2]
[420074559,1775653839493,-963262.45018707,0.00019,2]
[420074560,1775653839503,-1469.1763737,0.00019011,2]
[420074561,1775653839514,-169.5003208,0.00019108,2]
[420074562,1775653839525,-221.814332,0.00019115,2]
[420074563,1775653839535,-1000.0,0.00019121,2]
[420074564,1775653839545,-766.5974242,0.00019121,2]
[420074565,1775653839555,-248.116615,0.00019178,2]
[420074566,1775653839565,-531.09455588,0.00019307,2]
[420074567,1775653839575,-356.02170215,0.00019341,2]
[420074568,1775653839585,-2230.315306,0.00019409,2]
[420074569,1775653839595,-274.10020978,0.00019458,2]
[420074570,1775653839605,-165.46818888,0.00019473,2]
[420074571,1775653839615,-553.44469108,0.00019473,2]
[420074572,1775653839625,-500.0,0.00019473,2]
[420074573,1775653839635,-1242.0,0.0001949,2]
[420074574,1775653839645,-168.0,0.00019493,2]
[420074575,1775653839655,-168.0,0.00019497,2]
[420074576,1775653839665,-500.0,0.00019595,2]
[420074577,1775653839674,-500.0,0.00019596,2]
[420074578,1775653839684,-500.0,0.00019596,2]
[420074579,1775653839693,-500.0,0.00019596,2]
[420074580,1775653839703,-500.0,0.00019596,2]
[420074581,1775653839712,-322.821603,0.00019596,2]
[420074582,1775653839722,-177.993458,0.00019608,2]
[420074583,1775653839734,-160.0,0.00019608,7]
[420074584,1775653839744,-220.066697,0.00019608,7]
[420074585,1775653839753,-280.133394,0.00019608,7]
[420074586,1775653839765,-1500.0,0.00019668,2]
[420074587,1775653839775,-500.0,0.00019696,2]
[420074588,1775653839785,-1242.0,0.00019764,2]
[420074589,1775653839796,-1433.5,0.000198,2]
[420074590,1775653839806,-221.814332,0.00019857,2]
[420074591,1775653839816,-193.0,0.00019862,2]
[420074592,1775653839826,-250.0,0.00019863,7]
[420074593,1775653839836,-946.0,0.00019885,5]
[420074594,1775653839846,-870.0,0.00019885,5]
[420074595,1775653839855,-166.66666668,0.000199,2]
[420074596,1775653839866,-457.0,0.00019919,2]
[420074597,1775653839875,-185.0,0.00019919,2]
[420074598,1775653839885,-376.0,0.00019919,2]
[420074599,1775653839897,-531.09455588,0.00019942,2]
[420074600,1775653839907,-2312.83697232,0.00019957,2]
[420074601,1775653839916,-500.0,0.00019987,2]
[420074602,1775653839926,-168.0,0.00019998,2]
[420074603,1775653839935,-500.0,0.00019999,2]
[420074604,1775653839946,-156.23595384,0.0002,2]
[420074605,1775653839956,-1000.0,0.0002,2]
[420074606,1775653839966,-21865.71,0.0002,2]
[420074607,1775653839976,-1147.17475572,0.0002,3]
[420074609,1775653839986,-400.0,0.0002,2]
[420074610,1775653839996,-2000.0,0.0002,7]
[420074611,1775653840009,-160.0,0.00020008,2]
[420074612,1775653840020,-1541.589297,0.00020008,2]
[420074613,1775653840031,-160.0,0.00020008,7]
[420074614,1775653840041,-2923.178594,0.00020008,2]
[420074615,1775653840052,-1759.665251,0.00020008,7]
[420074616,1775653840062,-3359.330503,0.00020008,7]
[420074617,1775653840073,-1000.0,0.00020021,2]
[420074618,1775653840084,-1242.0,0.00020038,2]
[420074619,1775653840095,-457.4611598,0.00020127,2]
[420074620,1775653840106,-352.62422894,0.00020187,2]
[420074621,1775653840116,-600.0,0.00020193,2]
[420074622,1775653840126,-2000.0,0.00020216,2]
[420074623,1775653840136,-1242.0,0.00020312,2]
[420074624,1775653840147,-168.0,0.00020327,2]
[420074625,1775653840156,-168.0,0.00020425,2]
[420074626,1775653840166,-168.0,0.00020434,2]
[420074627,1775653840176,-2398.4119403,0.00020505,2]
[420074628,1775653840186,-863.0627001,0.00020553,2]
[420074629,1775653840196,-168.0,0.00020555,2]
[420074630,1775653840206,-234.51741227,0.00020568,2]
[420074631,1775653840216,-531.09455588,0.00020576,2]
[420074632,1775653840225,-1242.0,0.00020586,2]
[420074633,1775653840235,-300.09095,0.00020588,7]
[420074634,1775653840246,-221.814332,0.00020599,2]
[420074635,1775653840258,-2206.0,0.00020599,2]
[420074636,1775653840268,-1405.787,0.00020599,2]
[420074637,1775653840278,-184.0,0.00020599,2]
[420074638,1775653840288,-440.0,0.00020599,2]
[420074639,1775653840298,-460.19492931,0.00020764,2]
[420074640,1775653840308,-482.84145246,0.00020821,2]
[420074641,1775653840319,-168.0,0.00020829,2]
[420074642,1775653840329,-1242.0,0.0002086,2]
[420074643,1775653840339,-193.0,0.00020862,2]
[420074644,1775653840350,-168.0,0.00020884,2]
[420074645,1775653840360,-457.0,0.00020919,2]
[420074646,1775653840370,-185.0,0.00020919,2]
[420074647,1775653840380,-376.0,0.00020919,2]
[420074648,1775653840389,-3827.69939542,0.00020923,2]
[420074649,1775653840400,-1469.1763737,0.00020956,2]
[420074650,1775653840409,-4000.0,0.00021,2]
[420074651,1775653840419,-607.85662908,0.00021,2]
[420074652,1775653840430,-207.43704084,0.00021,2]
[420074653,1775653840440,-3000.0,0.00021,2]
[420074654,1775653840449,-2102.167223,0.00021009,2]
[420074655,1775653840459,-2399.543525,0.00021009,7]
[420074656,1775653840468,-3000.0,0.0002101,2]
[420074657,1775653840478,-3000.0,0.0002102,2]
[420074658,1775653840488,-663.98,0.0002102,2]
[420074659,1775653840498,-663.98,0.0002102,2]
[420074660,1775653840509,-663.98,0.0002102,2]
[420074661,1775653840518,-663.98,0.0002102,2]
[420074662,1775653840528,-663.98,0.0002102,2]
[420074663,1775653840538,-663.98,0.0002102,2]
[420074664,1775653840547,-663.98,0.0002102,2]
[420074665,1775653840558,-663.98,0.0002102,2]
[420074667,1775653840568,-663.98,0.0002102,2]
[420074669,1775653840578,-663.98,0.0002102,2]
[420074670,1775653840588,-663.98,0.0002102,2]
[420074671,1775653840598,-806.47,0.0002102,2]
[420074672,1775653840608,-3000.0,0.0002103,2]
[420074673,1775653840618,-168.0,0.00021033,2]
[420074674,1775653840629,-3000.0,0.0002104,2]
[420074675,1775653840639,-3000.0,0.0002105,2]
[420074676,1775653840649,-2487.15318209,0.00021053,2]
[420074677,1775653840660,-168.0,0.00021058,2]
[420074678,1775653840672,-3000.0,0.0002106,2]
[420074679,1775653840682,-3000.0,0.0002107,2]
[420074680,1775653840694,-1992.1522838,0.0002107,2]
[420074681,1775653840704,-3000.0,0.0002108,2]
[420074682,1775653840714,-3000.0,0.0002109,2]
[420074683,1775653840725,-3000.0,0.000211,2]
[420074684,1775653840736,-3000.0,0.0002111,2]
[420074685,1775653840746,-3000.0,0.0002112,2]
[420074686,1775653840758,-3000.0,0.0002113,2]
[420074697,1775653840769,-1242.0,0.00021134,2]
[420074699,1775653841032,-3000.0,0.0002114,2]
[420074701,1775653841043,-3000.0,0.0002115,2]
[420074703,1775653841054,-3000.0,0.0002116,2]
[420074705,1775653841065,-3000.0,0.0002117,2]
[420074707,1775653841075,-3000.0,0.0002118,2]
[420074709,1775653841085,-3000.0,0.0002119,2]
[420074711,1775653841096,-3000.0,0.000212,2]
[420074713,1775653841106,-3000.0,0.0002121,2]
[420074715,1775653841117,-531.09455588,0.0002121,2]
[420074717,1775653841127,-3000.0,0.0002122,2]
[420074719,1775653841138,-3000.0,0.0002123,2]
[420074721,1775653841149,-3000.0,0.0002124,2]
[420074723,1775653841160,-3000.0,0.0002125,2]
[420074725,1775653841170,-3000.0,0.0002126,2]
[420074727,1775653841181,-3000.0,0.0002127,2]
[420074729,1775653841190,-3000.0,0.0002128,2]
[420074731,1775653841200,-3000.0,0.0002129,2]
[420074733,1775653841210,-3000.0,0.000213,2]
[420074735,1775653841220,-4427.531102,0.0002131,2]
[420074737,1775653841230,-168.0,0.00021316,2]
[420074739,1775653841241,-221.814332,0.00021341,2]
[420074741,1775653841250,-168.0,0.00021384,2]
[420074743,1775653841262,-1242.0,0.00021408,2]
[420074745,1775653841272,-168.0,0.00021445,2]
[420074747,1775653841281,-168.0,0.00021453,2]
[420074749,1775653841291,-332.0420473,0.00021487,9]
[420074751,1775653841301,-168.0,0.00021524,2]
[420074753,1775653841310,-500.0,0.00021575,2]
[420074755,1775653841320,-2579.17784983,0.00021601,2]
[420074757,1775653841331,-186.4589059,0.00021614,2]
[420074758,1775653841341,-2000.0,0.00021667,7]
[420074760,1775653841351,-1242.0,0.00021682,2]
[420074762,1775653841361,-6891.35815229,0.00021718,2]
[420074764,1775653841371,-500.0,0.00021779,2]
[420074766,1775653841381,-193.0,0.00021862,2]
[420074768,1775653841391,-2967.80847105,0.000219,2]
[420074770,1775653841401,-332.0420473,0.00021904,10]
[420074772,1775653841411,-500.0,0.00021917,2]
[420074774,1775653841421,-500.0,0.00021917,2]
[420074776,1775653841431,-210.0337042,0.00021918,2]
[420074778,1775653841442,-151.0,0.00021918,2]
[420074780,1775653841452,-151.0,0.00021918,2]
[420074782,1775653841466,-151.0,0.00021918,2]
[420074784,1775653841477,-203.838168,0.00021918,2]
[420074786,1775653841488,-151.0,0.00021918,2]
[420074788,1775653841498,-151.0,0.00021918,2]
[420074790,1775653841511,-151.0,0.00021918,2]
[420074792,1775653841521,-151.0,0.00021918,2]
[420074794,1775653841530,-232.264121,0.00021918,2]
[420074796,1775653841541,-152.267443,0.00021918,2]
[420074798,1775653841550,-151.0,0.00021918,2]
[420074800,1775653841560,-153.879125,0.00021918,2]
[420074802,1775653841569,-151.0,0.00021918,2]
[420074804,1775653841580,-151.0,0.00021918,2]
[420074805,1775653841589,-151.0,0.00021918,2]
[420074806,1775653841599,-151.0,0.00021918,2]
[420074807,1775653841609,-151.0,0.00021918,2]
[420074808,1775653841620,-151.0,0.00021918,2]
[420074809,1775653841630,-202.156358,0.00021918,2]
[420074810,1775653841640,-151.0,0.00021918,2]
[420074811,1775653841651,-176.407327,0.00021918,2]
[420074812,1775653841662,-632.794852,0.00021918,2]
[420074813,1775653841673,-632.794852,0.00021918,2]
[420074814,1775653841684,-632.794852,0.00021918,2]
[420074815,1775653841694,-632.794852,0.00021918,2]
[420074816,1775653841704,-632.794852,0.00021918,2]
[420074817,1775653841715,-632.794852,0.00021918,2]
[420074818,1775653841725,-632.794852,0.00021918,2]
[420074819,1775653841735,-632.794852,0.00021918,2]
[420074820,1775653841746,-632.794852,0.00021918,2]
[420074821,1775653841759,-632.794852,0.00021918,2]
[420074822,1775653841770,-632.794852,0.00021918,2]
[420074823,1775653841780,-632.794852,0.00021918,2]
[420074824,1775653841790,-632.794852,0.00021918,2]
[420074825,1775653841802,-632.794852,0.00021918,2]
[420074826,1775653841812,-632.794852,0.00021918,2]
[420074827,1775653841822,-632.794852,0.00021918,2]
[420074828,1775653841832,-632.794852,0.00021918,2]
[420074829,1775653841842,-632.794852,0.00021918,2]
[420074830,1775653841852,-632.794852,0.00021918,2]
[420074831,1775653841863,-632.794855,0.00021918,2]
[420074832,1775653841874,-151.0,0.00021918,2]
[420074833,1775653841885,-151.0,0.00021918,2]
[420074834,1775653841895,-151.0,0.00021918,2]
[420074835,1775653841905,-164.475508,0.00021918,2]
[420074836,1775653841915,-489.955194,0.00021918,2]
[420074837,1775653841925,-489.955194,0.00021918,2]
[420074838,1775653841936,-489.955194,0.00021918,2]
[420074840,1775653841945,-489.955194,0.00021918,2]
[420074841,1775653841955,-151.0,0.00021918,2]
[420074842,1775653841966,-489.955194,0.00021918,2]
[420074843,1775653841975,-151.0,0.00021918,2]
[420074845,1775653841986,-489.955194,0.00021918,2]
[420074847,1775653841995,-151.0,0.00021918,2]
[420074849,1775653842005,-489.955194,0.00021918,2]
[420074851,1775653842019,-151.0,0.00021918,2]
[420074853,1775653842030,-489.955194,0.00021918,2]
[420074855,1775653842041,-151.0,0.00021918,2]
[420074857,1775653842052,-489.955194,0.00021918,2]
[420074859,1775653842062,-489.955194,0.00021918,2]
[420074861,1775653842071,-151.0,0.00021918,2]
[420074863,1775653842081,-489.955194,0.00021918,2]
[420074865,1775653842092,-151.0,0.00021918,2]
[420074867,1775653842101,-489.955194,0.00021918,2]
[420074869,1775653842111,-151.0,0.00021918,2]
[420074871,1775653842120,-151.0,0.00021918,2]
[420074873,1775653842130,-151.0,0.00021918,2]
[420074875,1775653842140,-489.955194,0.00021918,2]
[420074877,1775653842150,-489.955194,0.00021918,2]
[420074879,1775653842161,-489.955194,0.00021918,2]
[420074881,1775653842173,-489.955194,0.00021918,2]
[420074883,1775653842183,-489.955194,0.00021918,2]
[420074885,1775653842194,-489.955194,0.00021918,2]
[420074887,1775653842203,-489.955194,0.00021918,2]
[420074889,1775653842213,-489.955191,0.00021918,2]
[420074891,1775653842223,-415.685401,0.00021918,2]
[420074893,1775653842232,-415.685401,0.00021918,2]
[420074895,1775653842242,-415.685401,0.00021918,2]
[420074897,1775653842253,-415.685401,0.00021918,2]
[420074899,1775653842266,-415.685401,0.00021918,2]
[420074901,1775653842275,-415.685401,0.00021918,2]
[420074903,1775653842286,-415.685401,0.00021918,2]
[420074905,1775653842296,-415.685401,0.00021918,2]
[420074907,1775653842306,-415.685401,0.00021918,2]
[420074909,1775653842316,-415.685401,0.00021918,2]
[420074911,1775653842326,-415.685401,0.00021918,2]
[420074913,1775653842337,-415.685401,0.00021918,2]
[420074915,1775653842346,-415.685401,0.00021918,2]
[420074917,1775653842356,-415.685401,0.00021918,2]
[420074919,1775653842367,-415.685401,0.00021918,2]
[420074921,1775653842376,-415.685401,0.00021918,2]
[420074923,1775653842386,-415.685401,0.00021918,2]
[420074925,1775653842395,-415.685401,0.00021918,2]
[420074927,1775653842405,-415.685401,0.00021918,2]
[420074929,1775653842415,-415.6853974,0.00021918,2]
[420074931,1775653842425,-151.0,0.00021918,2]
[420074933,1775653842435,-151.0,0.00021918,2]
[420074935,1775653842445,-167.535027,0.00021918,2]
[420074937,1775653842455,-262.48438,0.00021918,2]
[420074939,1775653842465,-262.48438,0.00021918,2]
[420074941,1775653842475,-262.48438,0.00021918,2]
[420074943,1775653842485,-262.48438,0.00021918,2]
[420074945,1775653842494,-262.48438,0.00021918,2]
[420074947,1775653842504,-262.48438,0.00021918,2]
[420074949,1775653842516,-262.48438,0.00021918,2]
[420074951,1775653842526,-262.48438,0.00021918,2]
[420074953,1775653842536,-262.48438,0.00021918,2]
[420074955,1775653842547,-262.48438,0.00021918,2]
[420074957,1775653842557,-262.48438,0.00021918,2]
[420074959,1775653842567,-262.48438,0.00021918,2]
[420074961,1775653842577,-262.48438,0.00021918,2]
[420074963,1775653842587,-262.48438,0.00021918,2]
[420074965,1775653842598,-262.48438,0.00021918,2]
[420074967,1775653842608,-262.48438,0.00021918,2]
[420074969,1775653842618,-262.48438,0.00021918,2]
[420074971,1775653842628,-262.48438,0.00021918,2]
[420074973,1775653842638,-262.48438,0.00021918,2]
[420074975,1775653842648,-262.48438,0.00021918,2]
[420074977,1775653842659,-457.0,0.00021919,2]
[420074979,1775653842669,-185.0,0.00021919,2]
[420074981,1775653842678,-376.0,0.00021919,2]
[420074983,1775653842688,-1242.0,0.00021956,5]
[420074985,1775653842698,-500.0,0.00021972,2]
[420074987,1775653842708,-510.16310657,0.00021973,2]
[420074989,1775653842720,-500.0,0.00021973,2]
[420074991,1775653842730,-500.0,0.00021973,2]
[420074993,1775653842741,-500.0,0.00021973,2]
[420074995,1775653842751,-500.0,0.00021973,2]
[420074997,1775653842764,-500.0,0.00021973,2]
[420074999,1775653842773,-500.0,0.00021973,2]
[420075001,1775653842783,-500.0,0.00021973,2]
[420075003,1775653842792,-166.25515973,0.00021973,2]
[420075005,1775653842802,-181.54960554,0.00021973,2]
[420075007,1775653842811,-500.0,0.00021973,2]
[420075009,1775653842821,-500.0,0.00021973,2]
[420075011,1775653842831,-500.0,0.00021973,2]
[420075013,1775653842840,-500.0,0.00021973,2]
[420075015,1775653842850,-453.27530086,0.00021973,2]
[420075017,1775653842860,-500.0,0.00021973,2]